lending/lending_fUSD_20240926
["ID","MTS","AMOUNT","RATE_DAILY","PERIOD"]
[339203982,1727320133338,-151.0,0.00012991,2]
[339203983,1727320133358,-151.0,0.00012991,2]
[339203984,1727320133379,-151.0,0.00012991,2]
[339203985,1727320133400,-151.0,0.00012991,2]
[339203986,1727320133420,-151.0,0.00012991,2]
[339203987,1727320133441,-151.0,0.00012991,2]
[339203988,1727320133462,-151.0,0.00012991,2]
[339203989,1727320133483,-151.0,0.00012991,2]
[339203990,1727320133508,-151.0,0.00012991,2]
[339203991,1727320133529,-151.0,0.00012991,2]
[339203992,1727320133554,-151.0,0.00012991,2]
[339203993,1727320133576,-151.0,0.00012991,2]
[339203994,1727320133599,-151.0,0.00012991,2]
[339203995,1727320133620,-207.511891,0.00012991,2]
[339203996,1727320133641,-170.121973,0.00012991,2]
[339203997,1727320133661,-170.121973,0.00012991,2]
[339203998,1727320133682,-170.121973,0.00012991,2]
[339203999,1727320133702,-170.121973,0.00012991,2]
[339204000,1727320133725,-151.0,0.00012991,2]
[339204001,1727320133749,-151.0,0.00012991,2]
[339204002,1727320133772,-161.254221,0.00012991,2]
[339204003,1727320133796,-161.254221,0.00012991,2]
[339204004,1727320133818,-161.254221,0.00012991,2]
[339204005,1727320133839,-161.254221,0.00012991,2]
[339204006,1727320133860,-151.0,0.00012991,2]
[339204007,1727320133885,-151.0,0.00012991,2]
[339204008,1727320133909,-151.0,0.00012991,2]
[339204009,1727320133931,-151.0,0.00012991,2]
[339204010,1727320133953,-151.0,0.00012991,2]
[339204011,1727320133976,-151.0,0.00012991,2]
[339204012,1727320133997,-151.0,0.00012991,2]
[339204013,1727320134018,-151.0,0.00012991,2]
[339204014,1727320134044,-171.469192,0.00012991,2]
[339204015,1727320134067,-171.469192,0.00012991,2]
[339204016,1727320134093,-171.469192,0.00012991,2]
[339204017,1727320134115,-171.469192,0.00012991,2]
[339204018,1727320134139,-151.0,0.00012991,2]
[339204019,1727320134162,-151.0,0.00012991,2]
[339204020,1727320134186,-151.0,0.00012991,2]
[339204021,1727320134209,-151.0,0.00012991,2]
[339204022,1727320134233,-508.675475,0.00012991,2]
[339204023,1727320134254,-508.675475,0.00012991,2]
[339204024,1727320134275,-508.675475,0.00012991,2]
[339204025,1727320134295,-508.675475,0.00012991,2]
[339204026,1727320134315,-151.0,0.00012991,2]
[339204027,1727320134335,-151.0,0.00012991,2]
[339204028,1727320134355,-151.0,0.00012991,2]
[339204029,1727320134374,-151.0,0.00012991,2]
[339204030,1727320134394,-151.0,0.00012991,2]
[339204031,1727320134414,-151.0,0.00012991,2]
[339204032,1727320134437,-155.612244,0.00012991,2]
[339204033,1727320134458,-155.612244,0.00012991,2]
[339204034,1727320134477,-151.0,0.00012991,2]
[339204035,1727320134497,-188.321329,0.00012991,2]
[339204036,1727320134517,-151.0,0.00012991,2]
[339204037,1727320134538,-188.321329,0.00012991,2]
[339204038,1727320134559,-155.612244,0.00012991,2]
[339204039,1727320134581,-155.612244,0.00012991,2]
[339204040,1727320134602,-188.321329,0.00012991,2]
[339204041,1727320134622,-188.321329,0.00012991,2]
[339204042,1727320134643,-151.0,0.00012991,2]
[339204043,1727320134662,-151.0,0.00012991,2]
[339204044,1727320134682,-151.0,0.00012991,2]
[339204045,1727320134703,-151.0,0.00012991,2]
[339204046,1727320134724,-151.0,0.00012991,2]
[339204047,1727320134745,-151.0,0.00012991,2]
[339204048,1727320134767,-462.084521,0.00012991,2]
[339204049,1727320134788,-462.084521,0.00012991,2]
[339204050,1727320134809,-462.084521,0.00012991,2]
[339204051,1727320134831,-462.084521,0.00012991,2]
[339204052,1727320134854,-194.709854,0.00012991,2]
[339204053,1727320134875,-194.709854,0.00012991,2]
[339204054,1727320134896,-194.709854,0.00012991,2]
[339204055,1727320134917,-151.0,0.00012991,2]
[339204056,1727320134939,-194.709854,0.00012991,2]
[339204057,1727320134960,-151.0,0.00012991,2]
[339204058,1727320134982,-151.0,0.00012991,2]
[339204059,1727320135012,-151.0,0.00012991,2]
[339204060,1727320135034,-151.0,0.00012991,2]
[339204061,1727320135054,-2881.7811787,0.00012991,2]
[339204062,1727320135074,-151.0,0.00012991,2]
[339204063,1727320135095,-2754.7545896,0.00012991,2]
[339204064,1727320135116,-2627.7280005,0.00012991,2]
[339204065,1727320135136,-2500.7014114,0.00012991,2]
[339204066,1727320135162,-2373.6748222,0.00012991,2]
[339204067,1727320135183,-151.0,0.00012991,2]
[339204068,1727320135204,-151.0,0.00012991,2]
[339204069,1727320135225,-151.0,0.00012991,2]
[339204070,1727320135248,-151.0,0.00012991,2]
[339204071,1727320135269,-348.852032,0.00012991,2]
[339204072,1727320135289,-348.852032,0.00012991,2]
[339204073,1727320135310,-348.852032,0.00012991,2]
[339204074,1727320135330,-348.852032,0.00012991,2]
[339204075,1727320135350,-151.0,0.00012991,2]
[339204076,1727320135370,-151.0,0.00012991,2]
[339204077,1727320135390,-151.0,0.00012991,2]
[339204078,1727320135410,-151.0,0.00012991,2]
[339204079,1727320135430,-151.0,0.00012991,2]
[339204080,1727320135450,-151.0,0.00012991,2]
[339204081,1727320135470,-240.661754,0.00012991,2]
[339204082,1727320135491,-240.661754,0.00012991,2]
[339204083,1727320135514,-240.661754,0.00012991,2]
[339204084,1727320135538,-240.661754,0.00012991,2]
[339204085,1727320135562,-193.220083,0.00012991,2]
[339204086,1727320135586,-193.220083,0.00012991,2]
[339204087,1727320135609,-168.040427,0.00012991,2]
[339204088,1727320135631,-168.040427,0.00012991,2]
[339204089,1727320135654,-193.220083,0.00012991,2]
[339204090,1727320135676,-193.220083,0.00012991,2]
[339204091,1727320135700,-168.040427,0.00012991,2]
[339204092,1727320135725,-168.040427,0.00012991,2]
[339204093,1727320135747,-264.795364,0.00012991,2]
[339204094,1727320135767,-264.795364,0.00012991,2]
[339204095,1727320135788,-264.795364,0.00012991,2]
[339204096,1727320135811,-264.795364,0.00012991,2]
[339204097,1727320135833,-618.166221,0.00012991,2]
[339204098,1727320135855,-618.166221,0.00012991,2]
[339204099,1727320135875,-153.476458,0.00012991,2]
[339204100,1727320135896,-618.166221,0.00012991,2]
[339204101,1727320135916,-618.166221,0.00012991,2]
[339204102,1727320135937,-151.0,0.00012991,2]
[339204103,1727320135957,-151.0,0.00012991,2]
[339204104,1727320135980,-266.457235,0.00012991,2]
[339204105,1727320136004,-266.457235,0.00012991,2]
[339204106,1727320136026,-266.457235,0.00012991,2]
[339204107,1727320136048,-151.0,0.00012991,2]
[339204108,1727320136069,-266.457235,0.00012991,2]
[339204109,1727320136090,-151.0,0.00012991,2]
[339204110,1727320136111,-309.107969,0.00012991,2]
[339204111,1727320136132,-309.107969,0.00012991,2]
[339204112,1727320136155,-331.88499,0.00012991,2]
[339204113,1727320136176,-331.88499,0.00012991,2]
[339204114,1727320136197,-309.107969,0.00012991,2]
[339204115,1727320136218,-309.107969,0.00012991,2]
[339204116,1727320136240,-331.88499,0.00012991,2]
[339204117,1727320136261,-331.88499,0.00012991,2]
[339204118,1727320136283,-264.703642,0.00012991,2]
[339204119,1727320136304,-264.703642,0.00012991,2]
[339204120,1727320136484,-264.703642,0.00012991,2]
[339204121,1727320136507,-264.703642,0.00012991,2]
[339204122,1727320136529,-542.6990682,0.00012991,2]
[339204123,1727320136552,-517.3445811,0.00012991,2]
[339204124,1727320136572,-491.9900941,0.00012991,2]
[339204125,1727320136593,-466.635607,0.00012991,2]
[339204126,1727320136613,-441.28112,0.00012991,2]
[339204127,1727320136635,-904.876661,0.00012991,2]
[339204128,1727320136656,-904.876661,0.00012991,2]
[339204129,1727320136677,-904.876661,0.00012991,2]
[339204130,1727320136698,-904.876661,0.00012991,2]
[339204131,1727320136719,-360.695102,0.00012991,2]
[339204132,1727320136739,-360.695102,0.00012991,2]
[339204133,1727320136760,-290.867177,0.00012991,2]
[339204134,1727320136780,-151.0,0.00012991,2]
[339204135,1727320136801,-151.0,0.00012991,2]
[339204136,1727320136822,-360.695102,0.00012991,2]
[339204137,1727320136843,-151.0,0.00012991,2]
[339204138,1727320136863,-360.695102,0.00012991,2]
[339204139,1727320136884,-151.0,0.00012991,2]
[339204140,1727320136905,-151.0,0.00012991,2]
[339204141,1727320136925,-151.0,0.00012991,2]
[339204142,1727320136946,-151.0,0.00012991,2]
[339204143,1727320136967,-151.0,0.00012991,2]
[339204144,1727320136988,-14013.4130457,0.00012991,2]
[339204145,1727320137009,-290.911224,0.00012991,2]
[339204146,1727320137030,-13340.3364531,0.00012991,2]
[339204147,1727320137052,-12667.2598605,0.00012991,2]
[339204148,1727320137073,-290.911224,0.00012991,2]
[339204149,1727320137093,-11994.1832679,0.00012991,2]
[339204150,1727320137114,-11321.1066753,0.00012991,2]
[339204151,1727320137134,-290.911224,0.00012991,2]
[339204152,1727320137155,-290.911224,0.00012991,2]
[339204153,1727320137175,-483.345397,0.00012991,2]
[339204154,1727320137195,-483.345397,0.00012991,2]
[339204155,1727320137216,-200.0,0.00012995,2]
[339204156,1727320137236,-6334.66388912,0.00012995,2]
[339204157,1727320137258,-399.999999,0.00012998,2]
[339204158,1727320137279,-867.24179879,0.00012998,4]
[339204159,1727320137299,-2760.50177527,0.00012998,4]
[339204160,1727320137320,-151.0,0.00012998,2]
[339204161,1727320137342,-500.0,0.00012999,2]
[339204162,1727320137362,-1096.38479335,0.00012999,3]
[339204163,1727320137382,-1096.38479335,0.00012999,3]
[339204164,1727320137405,-1096.38479335,0.00012999,3]
[339204165,1727320137427,-1096.38479335,0.00012999,3]
[339204166,1727320137448,-179.44764292,0.00012999,2]
[339204167,1727320137470,-151.0,0.00012999,2]
[339204168,1727320137493,-2988272.59869125,0.00013,2]
[339204169,1727320137515,-1289205.76650318,0.00013,2]
[339204170,1727320137537,-2398886.88906699,0.00013,2]
[339204177,1727320181298,500.0,0.00010164,2]
[339204178,1727320181659,500.0,0.00010164,2]
[339204186,1727320232268,-420.4087,0.00011124,2]
[339204187,1727320232278,-500.0,0.00011534,2]
[339204188,1727320232288,-500.0,0.00011534,2]
[339204189,1727320232297,-497.68,0.00012083,2]
[339204190,1727320232307,-443.48,0.00012087,2]
[339204191,1727320232317,-2871.3712,0.00012556,2]
[339204192,1727320232328,-512.9073,0.00012799,2]
[339204193,1727320232338,-8421.4897,0.00012799,2]
[339204194,1727320232349,-215.6493,0.000128,2]
[339204195,1727320232359,-329.70936581,0.000128,2]
[339204196,1727320232370,-670.29063419,0.000128,2]
[339204197,1727320232380,-191.80388427,0.000128,2]
[339204198,1727320232389,-11761.35012538,0.00012856,2]
[339204199,1727320232401,-1728.64987462,0.00012856,2]
[339204200,1727320232410,-1147.0,0.00012856,2]
[339204201,1727320232421,-500.0,0.00012899,2]
[339204202,1727320232432,-466.69382954,0.00012899,2]
[339204203,1727320232441,-500.0,0.00012899,2]
[339204204,1727320232451,-699.85,0.00012899,2]
[339204205,1727320232461,-676.0,0.000129,2]
[339204206,1727320232471,-483.345397,0.000129,2]
[339204207,1727320232481,-483.345397,0.000129,2]
[339204208,1727320232491,-40.26139028,0.000129,2]
[339204209,1727320232503,-110.73860972,0.000129,2]
[339204210,1727320232512,-151.0,0.000129,2]
[339204211,1727320232521,-586.232752,0.000129,2]
[339204212,1727320232531,-586.232752,0.000129,2]
[339204213,1727320232540,-191.80388426,0.000129,2]
[339204214,1727320232550,-586.232752,0.000129,2]
[339204215,1727320232559,-586.232752,0.000129,2]
[339204216,1727320232568,-151.0,0.000129,2]
[339204217,1727320232578,-151.0,0.000129,2]
[339204218,1727320232589,-151.0,0.000129,2]
[339204219,1727320232602,-151.0,0.000129,2]
[339204220,1727320232611,-288.99445435,0.000129,2]
[339204222,1727320232621,-318.36542563,0.000129,2]
[339204223,1727320232630,-36178.35644003,0.000129,2]
[339204224,1727320232639,-302.2358003,0.000129,2]
[339204225,1727320232649,-361.50904583,0.000129,2]
[339204226,1727320232659,-500.0,0.00012904,2]
[339204227,1727320232668,-500.0,0.00012904,2]
[339204228,1727320232677,-603.51896938,0.00012973,2]
[339204229,1727320232686,-505.71293993,0.00012973,2]
[339204230,1727320232695,-503.28625999,0.00012973,2]
[339204231,1727320232705,-150.0,0.0001299,2]
[339204232,1727320232715,-55759.44954767,0.0001299,2]
[339204233,1727320232724,-159.83,0.0001299,2]
[339204234,1727320232734,-483.345397,0.00012991,2]
[339204235,1727320232744,-483.345397,0.00012991,2]
[339204236,1727320232754,-151.0,0.00012991,2]
[339204237,1727320232764,-151.0,0.00012991,2]
[339204238,1727320232774,-586.232752,0.00012991,2]
[339204239,1727320232783,-586.232752,0.00012991,2]
[339204240,1727320232792,-586.232752,0.00012991,2]
[339204241,1727320232802,-586.232752,0.00012991,2]
[339204242,1727320232812,-151.0,0.00012991,2]
[339204243,1727320232823,-151.0,0.00012991,2]
[339204244,1727320232833,-151.0,0.00012991,2]
[339204245,1727320232843,-151.0,0.00012991,2]
[339204246,1727320232852,-147578.55314,0.00013,2]
[339204247,1727320232861,-331131.07865242,0.00013,2]
[339204248,1727320232885,-394.81702012,0.00013,2]
[339204249,1727320232896,-836.6347215,0.00013,2]
[339204250,1727320232914,-356478.70618461,0.00013,2]
[339204251,1727320232930,-439.06909763,0.00013,2]
[339204252,1727320232947,-328.1431498,0.00013,2]
[339204254,1727320238470,-1000.0,0.00012856,2]
[339204255,1727320238631,-82.914,0.00012856,2]
[339204256,1727320238643,-253.19959759,0.00012999,2]
[339204257,1727320238655,-500.0,0.00012999,2]
[339204258,1727320238667,-499.82683029,0.00012999,2]
[339204259,1727320238679,-9592.51315654,0.00013,2]
[339204260,1727320238693,-573.14766347,0.00013,2]
[339204261,1727320238764,-398.93215263,0.00013,2]
[339204262,1727320238942,-310.70998676,0.00013,2]
[339204267,1727320240155,-615.20729819,0.00013,2]
[339204269,1727320240168,-816.88517876,0.00013,2]
[339204274,1727320240332,-13253.22423378,0.00013,2]
[339204275,1727320240346,-9576.98540562,0.00013,2]
[339204290,1727320243253,-806.5186,0.000128,2]
[339204292,1727320243263,-605.0,0.00013,2]
[339204294,1727320243272,-5629.13265959,0.00013,2]
[339204299,1727320243390,-2865.81931308,0.00013,2]
[339204301,1727320243522,-643.71140223,0.00013,2]
[339204302,1727320243815,-613.09825755,0.00013,2]
[339204304,1727320243835,-293.75433028,0.00013,2]
[339204323,1727320246179,-842.83233964,0.00013,2]
[339204327,1727320246191,-3975.80907621,0.00013,2]
[339204351,1727320246348,-2798.0820275,0.00013,2]
[339204395,1727320251673,-59999.91709403,0.00013,2]
[339204396,1727320296665,500.0,0.00010164,2]
[339204397,1727320302116,500.0,0.00010164,2]
[339204398,1727320401212,200.0,0.00020608,120]
[339204401,1727320466584,552.39,0.000139,31]
[339204402,1727320466639,552.39,0.000139,31]
[339204403,1727320466702,552.39,0.000139,31]
[339204404,1727320466769,552.39,0.000139,31]
[339204405,1727320466828,552.39,0.000139,31]
[339204406,1727320466887,552.39,0.000139,31]
[339204407,1727320466945,552.39,0.000139,31]
[339204408,1727320467006,552.39,0.000139,31]
[339204409,1727320467069,552.39,0.000139,31]
[339204410,1727320467124,552.39,0.000139,31]
[339204411,1727320467191,552.39,0.000139,31]
[339204412,1727320467250,552.39,0.000139,31]
[339204413,1727320467313,552.39,0.000139,31]
[339204414,1727320467374,552.39,0.000139,31]
[339204415,1727320467430,552.39,0.000139,31]
[339204416,1727320467497,552.39,0.000139,31]
[339204417,1727320616483,161.34,0.00010959,2]
[339204418,1727320648368,1712.37,9.997e-05,2]
[339204424,1727320921874,500.0,0.00021,68]
[339204425,1727320943444,500.0,0.000139,31]
[339204426,1727321008612,2511.636127,0.00021,60]
[339204429,1727321078750,464.05,0.000139,31]
[339204430,1727321078923,464.05,0.000139,31]
[339204431,1727321078984,464.05,0.000139,31]
[339204432,1727321079028,464.05,0.000139,31]
[339204433,1727321079078,464.05,0.000139,31]
[339204434,1727321079314,464.05,0.000139,31]
[339204435,1727321079358,464.05,0.000139,31]
[339204436,1727321079411,464.05,0.000139,31]
[339204437,1727321079473,464.05,0.000139,31]
[339204438,1727321079519,464.05,0.000139,31]
[339204439,1727321079581,464.05,0.000139,31]
[339204440,1727321079637,464.05,0.000139,31]
[339204441,1727321079689,464.05,0.000139,31]
[339204442,1727321079751,464.05,0.000139,31]
[339204443,1727321079817,464.05,0.000139,31]
[339204444,1727321079916,464.05,0.000139,31]
[339204445,1727321119270,2391.24003174,9e-05,2]
[339204446,1727321154280,19227.63226471,6.94e-05,2]
[339204447,1727321211932,1669.06,9.807e-05,2]
[339204449,1727321306311,153.48,0.00010959,2]
[339204481,1727321432345,-340.78735789,0.00011534,2]
[339204482,1727321432356,-159.21264211,0.00011534,2]
[339204483,1727321432366,-250.0,0.00011674,2]
[339204484,1727321432375,-327.46,0.00011683,2]
[339204485,1727321432385,-79.3831451,0.00011684,2]
[339204486,1727321432397,-417.9103824,0.00011684,2]
[339204487,1727321432447,-2.7064725,0.00011684,2]
[339204488,1727321432458,-150.0,0.00011686,2]
[339204489,1727321432467,-303.93,0.00011696,2]
[339204490,1727321432476,-246.74141068,0.00011702,2]
[339204491,1727321432488,-3.25858932,0.00011702,2]
[339204492,1727321432499,-300.0,0.00011704,2]
[339204493,1727321432509,-23900.0,0.00011705,2]
[339204494,1727321432518,-189.45,0.00011723,2]
[339204495,1727321432528,-585.07,0.00011729,2]
[339204496,1727321432538,-8813.87,0.00011731,2]
[339204497,1727321432548,-250.0,0.00011785,2]
[339204499,1727321432558,-1000.0,0.00011843,2]
[339204501,1727321432568,-1669.06,0.0001207,2]
[339204503,1727321432577,-178.96,0.00012256,2]
[339204505,1727321432588,-1250.0,0.000123,2]
[339204507,1727321432597,-828.65,0.00012329,2]
[339204509,1727321432606,-671.04,0.0001235,2]
[339204511,1727321432616,-166.72,0.00012445,2]
[339204513,1727321432625,-360.14674292,0.00012707,2]
[339204515,1727321432635,-150.0,0.00012735,2]
[339204517,1727321432644,-1183.94586599,0.0001274,2]
[339204519,1727321432653,-150.0,0.00012759,2]
[339204522,1727321432663,-150.0,0.00012763,2]
[339204525,1727321432673,-640.046,0.00012774,2]
[339204527,1727321432682,-159.443,0.00012774,2]
[339204529,1727321432692,-150.0,0.00012774,2]
[339204531,1727321432702,-3757.85655835,0.00012789,2]
[339204533,1727321432711,-202.29628368,0.00012799,2]
[339204535,1727321432720,-5068.1881,0.000128,2]
[339204537,1727321432730,-41241.0,0.000128,2]
[339204538,1727321432739,-430.6408,0.000128,2]
[339204540,1727321432748,-335.06816542,0.00012804,2]
[339204542,1727321432758,-150.0,0.00012846,2]
[339204544,1727321432769,-2000.0,0.00012846,2]
[339204546,1727321432778,-500.0,0.00012846,2]
[339204548,1727321432787,-150.0,0.0001285,2]
[339204550,1727321432797,-935.231,0.00012856,2]
[339204552,1727321432807,-554.45,0.00012856,2]
[339204554,1727321432816,-1904.0,0.00012856,2]
[339204555,1727321432826,-3348.0,0.00012856,2]
[339204557,1727321432835,-1914.0,0.00012856,2]
[339204558,1727321432844,-807.0,0.00012856,2]
[339204559,1727321432853,-628.942,0.00012856,2]
[339204560,1727321432863,-1549.0,0.00012856,2]
[339204561,1727321432872,-448.0,0.00012856,2]
[339204562,1727321432881,-1265.222,0.00012856,2]
[339204563,1727321432891,-5869.0,0.00012856,2]
[339204564,1727321432900,-626.611,0.00012856,2]
[339204565,1727321432909,-180.0,0.00012857,2]
[339204566,1727321432919,-150.0,0.0001286,2]
[339204567,1727321432928,-544.64627786,0.0001287,2]
[339204568,1727321432938,-150.0,0.0001289,2]
[339204569,1727321432948,-156.96,0.0001289,2]
[339204570,1727321432958,-150.0,0.00012893,2]
[339204571,1727321432968,-150.0,0.00012898,2]
[339204572,1727321432977,-500.0,0.00012899,2]
[339204573,1727321432987,-500.0,0.00012899,2]
[339204574,1727321432996,-500.0,0.00012899,2]
[339204575,1727321433006,-500.0,0.00012899,2]
[339204576,1727321433015,-500.0,0.00012899,2]
[339204577,1727321433024,-500.0,0.00012899,2]
[339204578,1727321433034,-500.0,0.00012899,2]
[339204579,1727321433043,-500.0,0.00012899,2]
[339204580,1727321433053,-500.0,0.00012899,2]
[339204581,1727321433062,-342.7962915,0.00012899,2]
[339204582,1727321433071,-568.05550203,0.00012899,2]
[339204583,1727321433080,-527.23971831,0.00012899,2]
[339204584,1727321433090,-568.05550197,0.00012899,2]
[339204585,1727321433099,-568.05550197,0.00012899,2]
[339204586,1727321433109,-568.05550197,0.00012899,2]
[339204587,1727321433118,-568.05550197,0.00012899,2]
[339204588,1727321433128,-568.05550197,0.000129,2]
[339204589,1727321433137,-568.05550197,0.000129,2]
[339204590,1727321433147,-2943.2615,0.000129,2]
[339204591,1727321433157,-568.05550197,0.000129,2]
[339204592,1727321433167,-568.05550197,0.000129,2]
[339204593,1727321433176,-159.33880151,0.000129,2]
[339204594,1727321433185,-568.05550197,0.000129,2]
[339204595,1727321433194,-174.79057916,0.000129,2]
[339204596,1727321433205,-59994.47233037,0.000129,2]
[339204597,1727321433225,-33839.0,0.000129,2]
[339204598,1727321438472,-150.0,0.00012856,2]
[339204599,1727321438481,-372.41366283,0.000129,2]
[339204600,1727321438570,-770.28030709,0.000129,2]
[339204601,1727321438671,-275.96458678,0.000129,2]
[339204602,1727321438682,-310.24010705,0.000129,2]
[339204603,1727321438774,-1826.19952413,0.000129,2]
[339204604,1727321438786,-29457.45244685,0.000129,2]
[339204605,1727321438797,-45117.52981854,0.000129,2]
[339204607,1727321440443,-996.9082176,0.00012856,2]
[339204611,1727321443359,-485.18373979,0.00011574,2]
[339204612,1727321443368,-70.37516321,0.00012856,2]
[339204613,1727321443456,-3174.85,0.00012856,2]
[339204614,1727321443555,-3378.79864632,0.00012856,2]
[339204615,1727321443810,-5874.06797287,0.00012856,2]
[339204617,1727321443820,-747.638,0.00012856,2]
[339204619,1727321443830,-2500.0,0.000129,2]
[339204620,1727321443839,-70285.89523776,0.000129,2]
[339204622,1727321445959,201.9,0.00021,60]
[339204623,1727321446248,-250.0,0.00012325,2]
[339204624,1727321446258,-150.0,0.00012741,2]
[339204625,1727321446267,-35.93874686,0.00012829,2]
[339204626,1727321446349,-114.06125314,0.00012829,2]
[339204627,1727321446359,-1089.43001486,0.000129,2]
[339204628,1727321475766,500.0,0.00010164,2]
[339204629,1727321691731,389.84,0.000139,31]
[339204630,1727321691787,389.84,0.000139,31]
[339204631,1727321691855,389.84,0.000139,31]
[339204632,1727321691926,389.84,0.000139,31]
[339204633,1727321691968,389.84,0.000139,31]
[339204634,1727321692022,389.84,0.000139,31]
[339204635,1727321692079,389.84,0.000139,31]
[339204636,1727321692115,389.84,0.000139,31]
[339204637,1727321692180,389.84,0.000139,31]
[339204638,1727321692229,389.84,0.000139,31]
[339204639,1727321692286,389.84,0.000139,31]
[339204640,1727321692350,389.84,0.000139,31]
[339204641,1727321692406,389.84,0.000139,31]
[339204642,1727321692471,389.84,0.000139,31]
[339204643,1727321692526,389.84,0.000139,31]
[339204644,1727321692591,389.84,0.000139,31]
[339204645,1727321754997,-401.7,0.00013,14]
[339204646,1727321789099,1540.24,0.00010166,2]
[339204647,1727321794994,501.92280042,0.00021,60]
[339204648,1727321795920,500.0,0.00021,60]
[339204649,1727321796221,500.0,0.00021,60]
[339204650,1727321796839,281.84648859,0.00021,60]
[339204651,1727321796928,542.38449881,0.00021,60]
[339204652,1727321797846,1886.49253766,0.00021,60]
[339204653,1727321797934,500.7509792,0.00021,60]
[339204654,1727321800030,500.0,0.00021,60]
[339204655,1727321800089,500.0,0.00021,60]
[339204656,1727321800344,500.0,0.00021,60]
[339204657,1727321800654,500.0,0.00021,60]
[339204658,1727321800918,500.0,0.00021,60]
[339204659,1727321801225,500.0,0.00021,60]
[339204660,1727321801571,500.0,0.00021,60]
[339204661,1727321801862,500.0,0.00021,60]
[339204662,1727321801918,500.0,0.00021,60]
[339204663,1727321802168,500.0,0.00021,60]
[339204664,1727321802219,500.38969018,0.00021,60]
[339204665,1727321802474,500.0,0.00021,60]
[339204666,1727321802804,413.92351093,0.00021,60]
[339204667,1727321803373,1050.0,0.00011,2]
[339204668,1727321803431,500.0,0.00021,60]
[339204669,1727321803483,158.81559579,0.00021,60]
[339204670,1727321803827,500.0,0.00021,60]
[339204671,1727321803881,756.29,0.00021,60]
[339204672,1727321804089,500.0,0.00021,60]
[339204673,1727321804170,756.29,0.00021,60]
[339204674,1727321804313,500.0,0.00021,60]
[339204675,1727321804378,590.06647134,0.00021,60]
[339204676,1727321804449,756.29,0.00021,60]
[339204677,1727321804754,756.29,0.00021,60]
[339204678,1727321804853,500.0,0.00021,60]
[339204679,1727321805016,756.29,0.00021,60]
[339204680,1727321805245,500.0,0.00021,60]
[339204681,1727321805605,500.0,0.00021,60]
[339204682,1727321805709,756.29,0.00021,60]
[339204683,1727321805933,500.0,0.00021,60]
[339204684,1727321806019,504.09993239,0.00021,60]
[339204685,1727321806177,756.29,0.00021,60]
[339204686,1727321806245,500.0,0.00021,60]
[339204687,1727321806463,756.29,0.00021,60]
[339204688,1727321806787,756.29,0.00021,60]
[339204689,1727321806928,500.0,0.00021,60]
[339204690,1727321807065,756.29,0.00021,60]
[339204691,1727321807263,500.0,0.00021,60]
[339204692,1727321807358,500.0,0.00021,60]